fUSD/lending_fUSD_20250519
["ID","MTS","AMOUNT","RATE_DAILY","PERIOD"]
[361635188,1747655449807,-1513.31,0.00013698,2]
[361635190,1747655449817,-524.11,0.00013698,2]
[361635192,1747655449826,-420.0,0.00013698,2]
[361635194,1747655449835,-420.0,0.00013698,2]
[361635196,1747655449844,-753.47,0.00013698,2]
[361635198,1747655449854,-380.0,0.00013698,2]
[361635200,1747655449863,-1254.42,0.00013698,2]
[361635202,1747655449872,-1889.75,0.00013698,2]
[361635204,1747655449882,-400.0,0.00013698,2]
[361635206,1747655449891,-581.29,0.00013698,2]
[361635208,1747655449900,-420.0,0.00013698,2]
[361635210,1747655449910,-400.0,0.00013698,2]
[361635212,1747655449919,-420.0,0.00013698,2]
[361635214,1747655449928,-420.0,0.00013698,2]
[361635216,1747655449938,-400.0,0.00013698,2]
[361635218,1747655449947,-607.3,0.00013698,2]
[361635220,1747655449957,-420.0,0.00013698,2]
[361635222,1747655449966,-396.5,0.00013698,2]
[361635224,1747655449976,-486.88,0.00013698,2]
[361635226,1747655449985,-937.23,0.00013698,2]
[361635228,1747655449994,-400.0,0.00013698,2]
[361635230,1747655450003,-151.0,0.00013698,2]
[361635232,1747655450012,-151.0,0.00013698,2]
[361635234,1747655450021,-518.24,0.00013698,2]
[361635236,1747655450030,-400.0,0.00013698,2]
[361635238,1747655450039,-151.0,0.00013698,2]
[361635240,1747655450048,-375.82657516,0.00013698,2]
[361635242,1747655450058,-420.0,0.00013698,2]
[361635244,1747655450067,-400.0,0.00013698,2]
[361635246,1747655450076,-420.0,0.00013698,2]
[361635248,1747655450086,-816.99,0.00013698,2]
[361635250,1747655450096,-963.14,0.00013698,2]
[361635252,1747655450105,-8869.55,0.00013698,2]
[361635254,1747655450114,-400.0,0.00013698,2]
[361635256,1747655450123,-160.509999,0.00013698,2]
[361635258,1747655450132,-400.0,0.00013698,2]
[361635260,1747655450141,-400.0,0.00013698,2]
[361635262,1747655450150,-420.0,0.00013698,2]
[361635264,1747655450159,-420.0,0.00013698,2]
[361635266,1747655450168,-1218.87,0.00013698,2]
[361635268,1747655450178,-420.0,0.00013698,2]
[361635270,1747655450187,-400.0,0.00013698,2]
[361635272,1747655450196,-150.870562,0.00013698,2]
[361635274,1747655450205,-405.50304602,0.00013698,2]
[361635276,1747655450214,-420.0,0.00013698,2]
[361635278,1747655450223,-562.51,0.00013698,2]
[361635280,1747655450232,-1329.41,0.00013698,2]
[361635282,1747655450242,-400.0,0.00013698,2]
[361635284,1747655450251,-562.13,0.00013698,2]
[361635286,1747655450260,-400.0,0.00013698,2]
[361635288,1747655450269,-400.0,0.00013698,2]
[361635290,1747655450278,-420.0,0.00013698,2]
[361635292,1747655450287,-978.96,0.00013698,2]
[361635294,1747655450296,-420.0,0.00013698,2]
[361635296,1747655450305,-400.0,0.00013698,2]
[361635298,1747655450315,-3279.02,0.00013698,2]
[361635300,1747655450323,-434.84,0.00013698,2]
[361635302,1747655450333,-420.0,0.00013698,2]
[361635304,1747655450342,-420.0,0.00013698,2]
[361635305,1747655450351,-420.0,0.00013698,2]
[361635308,1747655450360,-501.32200393,0.00013698,2]
[361635310,1747655450369,-420.0,0.00013698,2]
[361635311,1747655450378,-995.41,0.00013698,2]
[361635313,1747655450387,-1007.79,0.00013698,2]
[361635316,1747655450397,-1619.72,0.00013698,2]
[361635317,1747655450407,-400.0,0.00013698,2]
[361635320,1747655450417,-2279.87,0.00013698,2]
[361635321,1747655450426,-5921.15,0.00013698,2]
[361635324,1747655450436,-151.0,0.00013698,2]
[361635325,1747655450445,-400.0,0.00013698,2]
[361635327,1747655450455,-151.0,0.00013698,2]
[361635330,1747655450466,-718.65,0.00013698,2]
[361635332,1747655450476,-420.0,0.00013698,2]
[361635333,1747655450485,-420.0,0.00013698,2]
[361635334,1747655450494,-401.12847878,0.00013698,2]
[361635335,1747655450502,-420.0,0.00013698,2]
[361635336,1747655450511,-319.3559399,0.00013698,2]
[361635337,1747655450520,-151.0,0.00013698,2]
[361635338,1747655450528,-400.0,0.00013698,2]
[361635339,1747655450537,-400.0,0.00013698,2]
[361635340,1747655450547,-1639.41,0.00013698,2]
[361635341,1747655450555,-400.0,0.00013698,2]
[361635342,1747655450564,-398.41605946,0.00013698,2]
[361635344,1747655450574,-400.0,0.00013698,2]
[361635346,1747655450588,-400.0,0.00013698,2]
[361635348,1747655450599,-2233.24,0.00013698,2]
[361635350,1747655450609,-699.53,0.00013698,2]
[361635352,1747655450619,-400.0,0.00013698,2]
[361635354,1747655450628,-1663.81,0.00013698,2]
[361635356,1747655450638,-151.0,0.00013698,2]
[361635358,1747655450647,-151.0,0.00013698,2]
[361635360,1747655450659,-420.0,0.00013698,2]
[361635362,1747655450668,-420.0,0.00013698,2]
[361635364,1747655450678,-151.0,0.00013698,2]
[361635366,1747655450687,-420.0,0.00013698,2]
[361635368,1747655450696,-420.0,0.00013698,2]
[361635370,1747655450706,-420.0,0.00013698,2]
[361635372,1747655450715,-420.0,0.00013698,2]
[361635374,1747655450723,-1073.73,0.00013698,2]
[361635376,1747655450732,-232.702136,0.00013698,2]
[361635378,1747655450741,-1142.28,0.00013698,2]
[361635380,1747655450750,-7832.96,0.00013698,2]
[361635382,1747655450759,-420.0,0.00013698,2]
[361635384,1747655450770,-400.0,0.00013698,2]
[361635386,1747655450779,-400.0,0.00013698,2]
[361635388,1747655450788,-400.0,0.00013698,2]
[361635390,1747655450797,-496.29,0.00013698,2]
[361635392,1747655450807,-3436.52,0.00013698,2]
[361635393,1747655450815,-420.0,0.00013698,2]
[361635395,1747655450826,-420.0,0.00013698,2]
[361635397,1747655450835,-420.0,0.00013698,2]
[361635399,1747655450844,-401.97023752,0.00013698,2]
[361635401,1747655450853,-400.0,0.00013698,2]
[361635403,1747655450862,-151.0,0.00013698,2]
[361635405,1747655450871,-151.0,0.00013698,2]
[361635406,1747655450880,-420.0,0.00013698,2]
[361635408,1747655450890,-400.0,0.00013698,2]
[361635410,1747655450899,-706.49,0.00013698,2]
[361635412,1747655450909,-1585.46,0.00013698,2]
[361635414,1747655450918,-400.0,0.00013698,2]
[361635416,1747655450927,-400.0,0.00013698,2]
[361635418,1747655450936,-401.72766127,0.00013698,2]
[361635420,1747655450945,-455.13,0.00013698,2]
[361635422,1747655450954,-833.09,0.00013698,2]
[361635424,1747655450963,-420.0,0.00013698,2]
[361635426,1747655450972,-420.0,0.00013698,2]
[361635428,1747655450981,-994.46,0.00013698,2]
[361635430,1747655450991,-532.87,0.00013698,2]
[361635432,1747655450999,-468.22,0.00013698,2]
[361635434,1747655451008,-420.0,0.00013698,2]
[361635436,1747655451017,-3558.67,0.00013698,2]
[361635438,1747655451026,-3584.32,0.00013698,2]
[361635439,1747655451035,-510.08,0.00013698,2]
[361635441,1747655451044,-1006.03,0.00013698,2]
[361635443,1747655451054,-400.0,0.00013698,2]
[361635445,1747655451063,-400.0,0.00013698,2]
[361635447,1747655451072,-420.0,0.00013698,2]
[361635449,1747655451082,-762.61,0.00013698,2]
[361635451,1747655451091,-573.38327109,0.00013698,2]
[361635453,1747655451100,-800.7,0.00013698,2]
[361635455,1747655451109,-420.0,0.00013698,2]
[361635457,1747655451118,-400.0,0.00013698,2]
[361635459,1747655451127,-1130.57,0.00013698,2]
[361635461,1747655451136,-420.0,0.00013698,2]
[361635463,1747655451145,-400.0,0.00013698,2]
[361635465,1747655451154,-3877.01,0.00013698,2]
[361635467,1747655451163,-400.0,0.00013698,2]
[361635469,1747655451172,-400.0,0.00013698,2]
[361635471,1747655451181,-1171.14,0.00013698,2]
[361635473,1747655451191,-420.0,0.00013698,2]
[361635474,1747655451199,-151.0,0.00013698,2]
[361635476,1747655451208,-151.0,0.00013698,2]
[361635478,1747655451217,-420.0,0.00013698,2]
[361635480,1747655451226,-420.0,0.00013698,2]
[361635482,1747655451235,-400.0,0.00013698,2]
[361635484,1747655451245,-763.62,0.00013698,2]
[361635486,1747655451253,-400.0,0.00013698,2]
[361635488,1747655451262,-3722.67,0.00013698,2]
[361635490,1747655451271,-420.0,0.00013698,2]
[361635492,1747655451280,-559.87,0.00013698,2]
[361635494,1747655451289,-403.11369482,0.00013698,2]
[361635496,1747655451298,-400.0,0.00013698,2]
[361635498,1747655451307,-420.0,0.00013698,2]
[361635500,1747655451315,-511.33222598,0.00013698,2]
[361635502,1747655451325,-420.0,0.00013698,2]
[361635504,1747655451334,-400.0,0.00013698,2]
[361635506,1747655451342,-400.0,0.00013698,2]
[361635508,1747655451351,-569.87,0.00013698,2]
[361635510,1747655451360,-3063.32,0.00013698,2]
[361635511,1747655451371,-427.28,0.00013698,2]
[361635514,1747655451380,-1000.0,0.00013698,2]
[361635515,1747655451390,-420.0,0.00013698,2]
[361635517,1747655451399,-514.6,0.00013698,2]
[361635519,1747655451408,-640.56,0.00013698,2]
[361635521,1747655451417,-144726.51,0.00013698,2]
[361635523,1747655451426,-2522.78,0.00013698,2]
[361635525,1747655451435,-420.0,0.00013698,2]
[361635527,1747655451444,-420.0,0.00013698,2]
[361635529,1747655451453,-420.0,0.00013698,2]
[361635531,1747655451463,-420.0,0.00013698,2]
[361635533,1747655451472,-846.08,0.00013698,2]
[361635535,1747655451480,-1717.8,0.00013698,2]
[361635537,1747655451489,-400.0,0.00013698,2]
[361635539,1747655451499,-420.0,0.00013698,2]
[361635541,1747655451508,-420.0,0.00013698,2]
[361635543,1747655451517,-420.0,0.00013698,2]
[361635545,1747655451526,-400.0,0.00013698,2]
[361635547,1747655451535,-967.94,0.00013698,2]
[361635549,1747655451544,-1057.63,0.00013698,2]
[361635551,1747655451553,-667.86,0.00013698,2]
[361635553,1747655451562,-400.0,0.00013698,2]
[361635555,1747655451571,-420.0,0.00013698,2]
[361635557,1747655451585,-1597.18,0.00013698,2]
[361635559,1747655451594,-420.0,0.00013698,2]
[361635561,1747655451603,-420.0,0.00013698,2]
[361635563,1747655451612,-151.0,0.00013698,2]
[361635564,1747655451623,-151.0,0.00013698,2]
[361635566,1747655451632,-151.0,0.00013698,2]
[361635569,1747655451642,-240.0,0.00013698,2]
[361635570,1747655451651,-127.80847504,0.00013698,2]
[361635715,1747655453156,-150.0,0.00013471,2]
[361635717,1747655453166,-150.0,0.00013486,2]
[361635720,1747655453176,-150.0,0.00013541,2]
[361635722,1747655453186,-15.70953691,0.00013555,2]
[361635731,1747655453264,1140.52740636,0.00013807,5]
[361635824,1747655454213,-134.29046309,0.00013555,2]
[361635826,1747655454222,-2006.77765109,0.00013579,2]
[361635829,1747655454239,-8939.23231184,0.00013579,2]
[361635831,1747655454248,-150.0,0.00013609,2]
[361635833,1747655454258,-1370.67529737,0.00013619,2]
[361635835,1747655454269,-9575.33466556,0.00013619,2]
[361635837,1747655454279,-150.0,0.00013633,2]
[361635840,1747655454288,-150.0,0.00013636,2]
[361635842,1747655454298,-150.0,0.00013649,2]
[361635844,1747655454307,-150.0,0.00013653,2]
[361635846,1747655454316,-150.0,0.0001366,2]
[361635848,1747655454326,-150.0,0.00013666,2]
[361635850,1747655454336,-150.0,0.00013672,2]
[361635852,1747655454345,-1140.52740637,0.00013697,3]
[361635854,1747655454355,-422.22152496,0.00013698,2]
[361635856,1747655454364,-400.0,0.00013698,2]
[361635858,1747655454373,-617.51,0.00013698,2]
[361635860,1747655454383,-934.85,0.00013698,2]
[361635862,1747655454392,-420.0,0.00013698,2]
[361635864,1747655454401,-420.0,0.00013698,2]
[361635866,1747655454411,-521.75,0.00013698,2]
[361635868,1747655454420,-292.31855282,0.00013698,2]
[361635870,1747655454430,-420.0,0.00013698,2]
[361635872,1747655454439,-420.0,0.00013698,2]
[361635874,1747655454448,-400.0,0.00013698,2]
[361635876,1747655454457,-1987.31,0.00013698,2]
[361635878,1747655454467,-400.0,0.00013698,2]
[361635880,1747655454476,-420.0,0.00013698,2]
[361635882,1747655454485,-400.0,0.00013698,2]
[361635884,1747655454494,-873.19,0.00013698,2]
[361635886,1747655454503,-6575.29,0.00013698,2]
[361635888,1747655454513,-440.0,0.00013698,2]
[361635890,1747655454523,-420.0,0.00013698,2]
[361635892,1747655454534,-420.0,0.00013698,2]
[361635894,1747655454543,-1807.82,0.00013698,2]
[361635896,1747655454553,-400.0,0.00013698,2]
[361635898,1747655454563,-420.0,0.00013698,2]
[361635900,1747655454572,-573.61,0.00013698,2]
[361635902,1747655454585,-596.73,0.00013698,2]
[361635905,1747655454594,-420.0,0.00013698,2]
[361635907,1747655454604,-420.0,0.00013698,2]
[361635909,1747655454614,-420.0,0.00013698,2]
[361635911,1747655454623,-400.0,0.00013698,2]
[361635913,1747655454633,-420.0,0.00013698,2]
[361635915,1747655454642,-755.2,0.00013698,2]
[361635917,1747655454651,-676.08,0.00013698,2]
[361635918,1747655454660,-420.0,0.00013698,2]
[361635920,1747655454671,-624.33,0.00013698,2]
[361635922,1747655454681,-500.0,0.00013698,2]
[361635924,1747655454690,-459.94,0.00013698,2]
[361635926,1747655454700,-500.0,0.00013698,2]
[361635928,1747655454710,-400.0,0.00013698,2]
[361635930,1747655454720,-500.0,0.00013698,2]
[361635933,1747655454730,-504.77448776,0.00013698,2]
[361635935,1747655454740,-400.0,0.00013698,2]
[361635937,1747655454750,-714.81,0.00013698,2]
[361635939,1747655454761,-191.516233,0.00013698,2]
[361635941,1747655454771,-10058.29,0.00013698,2]
[361635943,1747655454781,-1064.58,0.00013698,2]
[361635945,1747655454790,-830.79,0.00013698,2]
[361635947,1747655454800,-979.69,0.00013698,2]
[361635948,1747655454809,-400.0,0.00013698,2]
[361635949,1747655454818,-1550.29,0.00013698,2]
[361635950,1747655454828,-400.0,0.00013698,2]
[361635951,1747655454837,-408.36348108,0.00013698,2]
[361635952,1747655454846,-420.0,0.00013698,2]
[361635953,1747655454855,-407.45,0.00013698,2]
[361635954,1747655454863,-420.0,0.00013698,2]
[361635955,1747655454873,-6452.51,0.00013698,2]
[361635957,1747655454882,-16450.35,0.00013698,2]
[361635959,1747655454892,-400.0,0.00013698,2]
[361635961,1747655454901,-1314.73,0.00013698,2]
[361635963,1747655454910,-420.0,0.00013698,2]
[361635965,1747655454919,-420.0,0.00013698,2]
[361635967,1747655454928,-420.0,0.00013698,2]
[361635969,1747655454938,-420.0,0.00013698,2]
[361635971,1747655454947,-3232.23584592,0.00013698,2]
[361635976,1747655454992,-1697.44700683,0.00013698,2]
[361635979,1747655455007,-435.30902262,0.00013698,2]
[361636159,1747655576139,9879.5223424,0.00025,60]
[361636160,1747656082631,-154.57432117,0.00012279,2]
[361636161,1747656105662,-152.0,0.0001234,2]
[361636162,1747656123437,745.84,0.00010618,2]
[361636169,1747656631757,-1058.44493665,0.00012009,2]
[361636170,1747656631814,-584.93064735,0.00012009,2]
[361636171,1747656631824,-56.75014765,0.0001207,2]
[361636641,1747656637732,-148.24985235,0.0001207,2]
[361636642,1747656637741,-207.49295383,0.00012178,2]
[361636643,1747656637750,-106.20699066,0.00012179,2]
[361636644,1747656637787,-1783.93883782,0.00012179,2]
[361636645,1747656637841,-681.01589729,0.00012179,2]
[361636646,1747656637850,-500.0,0.00012277,2]
[361636647,1747656637860,-300.0,0.000123,2]
[361636648,1747656637870,-1200.0,0.000123,2]
[361636649,1747656637879,-300.0,0.000123,2]
[361636650,1747656637889,-10734.41,0.00012301,2]
[361636651,1747656637898,-167.07,0.00012331,2]
[361636652,1747656637907,-500.0,0.00012341,2]
[361636653,1747656637917,-500.0,0.00012341,2]
[361636654,1747656637927,-500.0,0.00012341,2]
[361636655,1747656637936,-500.0,0.00012341,2]
[361636656,1747656637945,-500.0,0.00012341,2]
[361636658,1747656637955,-893.83,0.00012388,2]
[361636659,1747656637966,-200.0,0.00012404,2]
[361636660,1747656637975,-567.88,0.00012405,2]
[361636661,1747656637985,-150.0,0.00012414,2]
[361636662,1747656637994,-150.0,0.00012414,2]
[361636663,1747656638004,-548.2405183,0.00012421,2]
[361636667,1747656638030,-341.95999995,0.00012421,2]
[361636669,1747656638042,-3485.77531867,0.00012421,2]
[361636671,1747656638058,-2938.90603946,0.00012421,2]
[361636674,1747656638069,-1756.27846413,0.00012421,2]
[361636894,1747656639896,-14828.83965949,0.00012421,2]
[361636897,1747656639906,-250.0,0.00012437,2]
[361636901,1747656639916,-207.02,0.00012492,2]
[361636903,1747656639926,-200.0,0.00012525,2]
[361636905,1747656639936,-153.91,0.00012542,2]
[361636907,1747656639945,-4000.0,0.00012611,2]
[361636909,1747656639955,-833.06,0.00012637,2]
[361636911,1747656639965,-150.0,0.00012646,2]
[361636913,1747656639975,-3822.11,0.00012647,2]
[361636915,1747656639985,-1000.0,0.0001265,2]
[361636917,1747656639995,-703.45,0.00012673,2]
[361636919,1747656640005,-458.06,0.000127,2]
[361636921,1747656640020,-500.0,0.00012712,2]
[361636923,1747656640029,-165.37,0.00012746,2]
[361636925,1747656640039,-200.0,0.00012784,2]
[361636927,1747656640047,-170.07,0.00012798,2]
[361636929,1747656640058,-207.49295382,0.00012833,2]
[361636931,1747656640067,-745.84,0.00012882,2]
[361636932,1747656640077,-537.0,0.00013014,2]
[361636934,1747656640088,-151.0,0.0001304,2]
[361636936,1747656640098,-668.65185757,0.0001304,2]
[361636938,1747656640108,-668.65185757,0.0001304,2]
[361636941,1747656640119,-207.4,0.0001304,2]
[361636943,1747656640129,-500.0,0.00013041,2]
[361636945,1747656640139,-200.0,0.00013348,2]
[361636946,1747656640149,-250.0,0.00013348,2]
[361636947,1747656640159,-804.53,0.00013425,2]
[361636948,1747656640168,-153.91,0.00013482,2]
[361636949,1747656640179,-207.49295382,0.00013488,2]
[361636950,1747656640189,-420.0,0.00013498,2]
[361636951,1747656640199,-420.0,0.00013498,2]
[361636952,1747656640208,-292.6879059,0.00013522,2]
[361636953,1747656640218,-1680.0,0.0001353,2]
[361636954,1747656640228,-150.3,0.00013534,2]
[361636955,1747656640237,-150.3,0.00013534,2]
[361636957,1747656640247,-150.3,0.00013534,2]
[361636958,1747656640258,-150.3,0.00013534,2]
[361636960,1747656640268,-150.3,0.00013534,2]
[361636962,1747656640277,-150.3,0.00013534,2]
[361636964,1747656640287,-150.3,0.00013534,2]
[361636966,1747656640296,-150.3,0.00013534,2]
[361636968,1747656640306,-150.3,0.00013534,2]
[361636970,1747656640316,-373.24120146,0.00013588,2]
[361636972,1747656640326,-1993.23097681,0.00013593,2]
[361636974,1747656640335,-841.85255707,0.00013598,2]
[361636976,1747656640344,-162.48523969,0.00013598,2]
[361636978,1747656640354,-158.2394192,0.00013598,2]
[361636980,1747656640364,-7662.20697406,0.00013598,2]
[361636982,1747656640373,-587.047,0.00013598,2]
[361636984,1747656640382,-1000.0,0.000136,2]
[361636986,1747656640392,-1000.0,0.000136,2]
[361636988,1747656640401,-1000.0,0.000136,2]
[361636990,1747656640410,-495.0,0.000136,3]
[361636992,1747656640420,-1000.0,0.000136,2]
[361636994,1747656640429,-1000.0,0.000136,2]
[361636996,1747656640439,-1229.0,0.000136,2]
[361636998,1747656640448,-864.76119748,0.00013604,2]
[361637000,1747656640458,-1000.0,0.00013614,2]
[361637002,1747656640467,-150.0,0.00013622,2]
[361637004,1747656640477,-996.5,0.00013631,2]
[361637006,1747656640486,-841.85255703,0.00013632,2]
[361637008,1747656640495,-7662.20697405,0.00013632,2]
[361637010,1747656640504,-1000.0,0.00013633,2]
[361637012,1747656640514,-150.0,0.00013634,2]
[361637014,1747656640523,-242.653,0.00013635,2]
[361637016,1747656640532,-1459.0,0.00013635,2]
[361637018,1747656640542,-554.0,0.00013635,2]
[361637020,1747656640552,-150.0,0.00013638,2]
[361637022,1747656640561,-500.0,0.0001364,2]
[361637024,1747656640571,-500.0,0.0001364,2]
[361637026,1747656640580,-500.0,0.0001364,2]
[361637028,1747656640590,-500.0,0.0001364,2]
[361637030,1747656640599,-464.52303477,0.0001364,2]
[361637032,1747656640609,-271.50798924,0.0001364,2]
[361637034,1747656640618,-920.0,0.00013641,2]
[361637036,1747656640627,-6830.0,0.00013641,2]
[361637038,1747656640637,-880.0,0.00013641,2]
[361637040,1747656640646,-850.256,0.00013641,2]
[361637042,1747656640656,-200.0,0.00013644,2]
[361637044,1747656640667,-168.235,0.00013655,2]
[361637046,1747656640677,-150.0,0.00013656,2]
[361637048,1747656640686,-1369.02,0.00013658,2]
[361637050,1747656640696,-158.2394192,0.00013658,2]
[361637052,1747656640705,-1007.0,0.0001366,2]
[361637054,1747656640716,-1000.0,0.00013661,2]
[361637056,1747656640726,-841.85255703,0.00013665,2]
[361637058,1747656640735,-7662.20697405,0.00013665,2]
[361637060,1747656640744,-150.0,0.0001367,2]
[361637062,1747656640754,-370.52057688,0.00013673,2]
[361637064,1747656640763,-500.0,0.00013673,2]
[361637066,1747656640773,-500.0,0.00013673,2]
[361637068,1747656640782,-500.0,0.00013673,2]
[361637070,1747656640792,-503.34073769,0.00013673,2]
[361637072,1747656640801,-150.0,0.00013675,2]
[361637074,1747656640810,-150.56816991,0.00013675,2]
[361637076,1747656640820,-167.87877207,0.00013675,2]
[361637078,1747656640830,-1000.0,0.00013676,2]
[361637080,1747656640839,-337.69265422,0.00013697,2]
[361637082,1747656640848,-168.934,0.00013697,2]
[361637084,1747656640857,-6692.18374818,0.00013697,2]
[361637086,1747656640867,-150.0,0.00013697,2]
[361637088,1747656640877,-377.26188064,0.00013697,2]
[361637090,1747656640886,-223.28455598,0.00013697,2]
[361637092,1747656640896,-156.29918918,0.00013697,2]
[361637094,1747656640905,-151.0,0.00013698,2]
[361637096,1747656640915,-158.057291,0.00013698,2]
[361637098,1747656640924,-166.361386,0.00013698,2]
[361637100,1747656640933,-151.0,0.00013698,2]
[361637102,1747656640943,-151.0,0.00013698,2]
[361637104,1747656640952,-151.0,0.00013698,2]
[361637106,1747656640961,-153.564576,0.00013698,2]
[361637108,1747656640971,-151.0,0.00013698,2]
[361637110,1747656640980,-220.952852,0.00013698,2]
[361637113,1747656640989,-400.0,0.00013698,2]
[361637115,1747656640999,-400.91902702,0.00013698,2]
[361637117,1747656641012,-380.0,0.00013698,2]
[361637119,1747656641021,-400.0,0.00013698,2]
[361637121,1747656641031,-305.85197547,0.00013698,2]
[361637123,1747656641040,-400.0,0.00013698,2]
[361637125,1747656641050,-864.417242,0.00013698,2]
[361637127,1747656641061,-864.417242,0.00013698,2]
[361637129,1747656641071,-864.417242,0.00013698,2]
[361637131,1747656641080,-151.0,0.00013698,2]
[361637133,1747656641092,-151.0,0.00013698,2]
[361637135,1747656641102,-151.0,0.00013698,2]
[361637137,1747656641111,-151.0,0.00013698,2]
[361637139,1747656641120,-400.0,0.00013698,2]
[361637141,1747656641130,-401.74571758,0.00013698,2]
[361637143,1747656641139,-280.0,0.00013698,2]
[361637145,1747656641148,-484.1,0.00013698,2]
[361637147,1747656641157,-400.0,0.00013698,2]
[361637149,1747656641166,-420.0,0.00013698,2]
[361637151,1747656641176,-420.0,0.00013698,2]
[361637153,1747656641186,-152.127817,0.00013698,2]
[361637155,1747656641195,-420.0,0.00013698,2]
[361637157,1747656641204,-400.0,0.00013698,2]
[361637159,1747656641214,-400.0,0.00013698,2]
[361637161,1747656641223,-400.0,0.00013698,2]
[361637163,1747656641232,-502.65891452,0.00013698,2]
[361637165,1747656641241,-420.0,0.00013698,2]
[361637167,1747656641250,-400.0,0.00013698,2]
[361637169,1747656641260,-420.0,0.00013698,2]
[361637171,1747656641269,-409.83,0.00013698,2]
[361637173,1747656641279,-317.36135884,0.00013698,2]
[361637175,1747656641288,-402.74553713,0.00013698,2]
[361637177,1747656641297,-400.0,0.00013698,2]
[361637179,1747656641307,-420.0,0.00013698,2]
[361637181,1747656641316,-420.0,0.00013698,2]
[361637183,1747656641325,-420.0,0.00013698,2]
[361637185,1747656641335,-420.0,0.00013698,2]
[361637187,1747656641344,-420.0,0.00013698,2]
[361637189,1747656641353,-420.0,0.00013698,2]
[361637191,1747656641363,-420.0,0.00013698,2]
[361637192,1747656641372,-400.0,0.00013698,2]
[361637195,1747656641382,-400.18494379,0.00013698,2]
[361637197,1747656641391,-399.4780063,0.00013698,2]
[361637199,1747656641401,-420.0,0.00013698,2]
[361637201,1747656641410,-505.1771216,0.00013698,2]
[361637203,1747656641419,-400.0,0.00013698,2]
[361637205,1747656641429,-400.0,0.00013698,2]
[361637206,1747656641438,-381.75,0.00013698,2]
[361637208,1747656641448,-400.0,0.00013698,2]
[361637211,1747656641458,-400.0,0.00013698,2]
[361637213,1747656641467,-400.0,0.00013698,2]
[361637215,1747656641476,-420.0,0.00013698,2]
[361637217,1747656641485,-400.0,0.00013698,2]
[361637219,1747656641494,-400.0,0.00013698,2]
[361637221,1747656641504,-420.0,0.00013698,2]
[361637223,1747656641513,-721.33,0.00013698,2]
[361637225,1747656641522,-420.0,0.00013698,2]
[361637227,1747656641532,-401.09920082,0.00013698,2]
[361637229,1747656641541,-655.18,0.00013698,2]
[361637231,1747656641550,-420.0,0.00013698,2]
[361637233,1747656641559,-420.0,0.00013698,2]
[361637235,1747656641569,-420.0,0.00013698,2]
[361637237,1747656641578,-400.0,0.00013698,2]
[361637239,1747656641587,-400.81303816,0.00013698,2]
[361637241,1747656641596,-400.0,0.00013698,2]
[361637243,1747656641605,-512.80235858,0.00013698,2]
[361637245,1747656641614,-400.0,0.00013698,2]
[361637247,1747656641623,-420.0,0.00013698,2]
[361637249,1747656641633,-400.0,0.00013698,2]
[361637251,1747656641643,-401.51240966,0.00013698,2]